bitfinex-derivatives/quotes_BTCF0:USTF0_20251219
["timestamp","ask_amount","ask_price","bid_price","bid_amount"]
[1766157429545,0.0112033,89300.0,89266.0,1.429]
[1766157429744,8.875e-05,89299.0,89266.0,1.429]
[1766157430050,8.875e-05,89299.0,89235.0,0.0112113]
[1766157430051,8.875e-05,89299.0,89242.0,0.07778656]
[1766157430349,8.875e-05,89299.0,89160.0,0.0112207]
[1766157430350,0.0560212,89292.0,89219.0,0.07778656]
[1766157430655,0.0112103,89244.0,89201.0,0.05812353]
[1766157430851,0.00016803,89231.0,89214.0,0.00016803]
[1766157431146,0.00016803,89231.0,89202.0,0.01753131]
[1766157431147,0.00268,89269.0,89215.0,0.14533629]
[1766157431353,0.00268,89269.0,89229.0,0.011212]
[1766157431547,0.00010412,89268.0,89254.0,0.0112089]
[1766157431749,0.00064,89284.0,89247.0,0.00612]
[1766157432049,0.06237986,89360.0,89286.0,0.0112049]
[1766157432356,0.0112003,89323.0,89279.0,0.0112057]
[1766157432547,0.00612,89331.0,89292.0,0.0112042]
[1766157432747,0.00011583,89330.0,89279.0,0.05810313]
[1766157432950,0.0112008,89320.0,89280.0,0.01751622]
[1766157433145,0.0559663,89380.0,89291.0,0.00016802]
[1766157433453,0.03999804,89383.0,89281.0,0.01751635]
[1766157433454,0.0111955,89362.0,89317.0,0.011201]
[1766157433751,0.00612,89364.0,89312.0,0.00612]
[1766157433946,0.00268,89363.0,89307.0,0.00612]
[1766157434151,0.00016792,89344.0,89295.0,0.0112037]
[1766157434345,0.00016792,89344.0,89308.0,0.11193445]
[1766157434545,0.88657234,89400.0,89308.0,0.11193445]
[1766157434546,0.0111912,89396.0,89327.0,0.0559989]
[1766157434749,0.00612,89395.0,89351.0,0.0111967]
[1766157435053,0.0111927,89384.0,89344.0,0.0111976]
[1766157435241,0.011192,89390.0,89344.0,0.0111976]
[1766157435437,0.011192,89390.0,89341.0,0.00268]
[1766157435438,0.0111926,89385.0,89343.0,0.0111978]
[1766157435641,0.0111956,89361.0,89324.0,0.0112001]
[1766157435840,0.0131548,89368.0,89327.0,0.0111998]
[1766157436041,0.00196,89368.0,89332.0,0.0111992]
[1766157436241,0.0111917,89392.0,89350.0,0.0111969]
[1766157436454,1.5,89404.0,89318.0,0.0579649]
[1766157436455,1.5,89404.0,89351.0,0.07560561]
[1766157436642,0.0111932,89380.0,89369.0,2e-08]
[1766157436838,0.0056,89381.0,89337.0,0.0111985]
[1766157437043,0.0111949,89367.0,89325.0,0.00011715]
[1766157437244,0.0111942,89372.0,89331.0,0.0111993]
[1766157437444,0.0111935,89378.0,89325.0,0.00011715]
[1766157437648,0.004,89398.0,89325.0,0.00011715]
[1766157437843,0.0111912,89397.0,89360.0,0.0111957]
[1766157438154,0.004,89398.0,89353.0,0.00016781]
[1766157438155,0.004,89398.0,89359.0,0.0111957]
[1766157438547,0.004,89398.0,89366.0,0.0111949]
[1766157438753,0.011191,89397.0,89354.0,0.0131964]
[1766157439048,0.00016781,89384.0,89341.0,0.05810313]
[1766157439351,0.00016781,89384.0,89331.0,0.05810313]
[1766157439553,0.004,89398.0,89332.0,0.05810313]
[1766157439749,0.004,89398.0,89339.0,0.05810313]
[1766157440056,1.5,89404.0,89339.0,0.05810313]
[1766157440057,1e-08,89377.0,89367.0,0.0111947]
[1766157440261,1e-08,89377.0,89361.0,0.0111955]
[1766157440552,0.0111864,89435.0,89361.0,0.0111955]
[1766157440553,0.0111866,89433.0,89369.0,0.05810313]
[1766157440753,0.0111866,89433.0,89368.0,0.127304]
[1766157440754,0.0111867,89433.0,89386.0,0.0111923]
[1766157440947,0.0111871,89429.0,89387.0,1.4458323]
[1766157441143,0.0111871,89429.0,89388.0,0.00608]
[1766157441450,0.0111888,89416.0,89400.0,0.00016781]
[1766157441752,0.00016781,89417.0,89399.0,0.00016781]
[1766157441954,0.0111895,89410.0,89371.0,0.29000237]
[1766157442162,0.0111895,89410.0,89325.0,0.01131715]
[1766157442163,0.00016781,89417.0,89359.0,1.42844]
[1766157442449,0.0111905,89401.0,89360.0,0.03955048]
[1766157442646,0.0111891,89413.0,89372.0,0.0111941]
[1766157442848,0.0111914,89395.0,89353.0,0.0111965]
[1766157443040,0.00016781,89383.0,89329.0,0.05810313]
[1766157443241,0.0559629,89386.0,89331.0,0.12110365]
[1766157443444,0.0559629,89386.0,89325.0,0.00011715]
[1766157443445,0.0559706,89373.0,89325.0,0.00011715]
[1766157443655,0.011196,89358.0,89325.0,0.00011715]
[1766157443951,0.00532,89388.0,89326.0,0.28073587]
[1766157444156,0.00532,89388.0,89348.0,0.00016781]
[1766157444157,0.00016781,89366.0,89348.0,0.00016781]
[1766157444757,0.00016781,89366.0,89325.0,0.00011715]
[1766157444962,0.00016781,89366.0,89331.0,0.0111992]
[1766157445254,0.00016781,89366.0,89341.0,0.011198]
[1766157445451,0.00016781,89366.0,89325.0,0.00011715]
[1766157445654,1e-08,89366.0,89353.0,0.0111965]
[1766157445852,1e-08,89366.0,89359.0,0.0111958]
[1766157446054,0.0111877,89424.0,89341.0,0.00608]
[1766157446055,0.0111891,89413.0,89345.0,0.0111976]
[1766157446259,0.0111897,89408.0,89364.0,0.0111951]
[1766157446446,0.00264,89412.0,89358.0,0.0111958]
[1766157446648,0.00264,89412.0,89339.0,0.0111982]
[1766157446649,0.0111933,89379.0,89339.0,0.0111982]
[1766157446845,0.011194,89374.0,89335.0,1.42824]
[1766157447049,0.00016781,89363.0,89346.0,0.00016781]
[1766157447460,0.00099999,89450.0,89358.0,0.0559796]
[1766157447651,0.0111868,89432.0,89376.0,0.02901359]
[1766157447850,0.0111868,89432.0,89360.0,0.0111957]
[1766157447851,0.0111885,89418.0,89378.0,0.02901359]
[1766157448053,0.0559255,89445.0,89377.0,0.04784986]
[1766157448054,1.5,89444.0,89379.0,0.06544079]
[1766157448259,1.4282,89492.0,89393.0,0.02901359]
[1766157448464,0.0558909,89501.0,89415.0,0.02901359]
[1766157448660,0.0111821,89469.0,89429.0,0.0111869]
[1766157448855,1.5,89469.0,89429.0,0.0111869]
[1766157449055,0.0111809,89478.0,89437.0,0.011186]
[1766157449256,0.0111809,89479.0,89436.0,0.0111861]
[1766157449455,0.0111815,89474.0,89425.0,0.12901408]
[1766157449652,0.0001677,89458.0,89441.0,0.0001677]
[1766157450554,0.0111847,89448.0,89412.0,0.02901359]
[1766157450754,0.011184,89454.0,89413.0,0.01845011]
[1766157450952,0.0111856,89441.0,89414.0,0.01749017]
[1766157451152,0.00264,89458.0,89409.0,0.00608]
[1766157451354,0.00264,89458.0,89402.0,0.02901359]
[1766157451355,0.0559217,89451.0,89389.0,0.02901359]
[1766157451555,0.0559191,89455.0,89360.0,0.0111956]
[1766157451556,0.0111851,89445.0,89378.0,0.02901359]
[1766157451756,0.0001677,89428.0,89370.0,0.02901359]
[1766157451960,0.00524,89427.0,89365.0,1.42776]
[1766157452151,0.00524,89427.0,89375.0,0.0111937]
[1766157452351,0.00524,89427.0,89367.0,0.02901359]
[1766157452352,0.0111888,89416.0,89378.0,0.0111934]
[1766157452755,0.0111888,89416.0,89393.0,0.0001677]
[1766157452958,0.00524,89427.0,89393.0,0.0001677]
[1766157453159,0.0111894,89411.0,89393.0,0.0001677]
[1766157453361,0.0111893,89411.0,89370.0,0.0111943]
[1766157453563,0.0111893,89411.0,89341.0,0.0559905]
[1766157453564,0.0111902,89404.0,89365.0,0.011195]
[1766157453764,0.0111908,89400.0,89360.0,0.0111956]
[1766157453968,0.0026,89403.0,89364.0,0.0111951]
[1766157454163,0.0026,89403.0,89359.0,0.0111957]
[1766157454164,0.0111909,89399.0,89359.0,0.0111957]
[1766157454369,0.0001678,89388.0,89358.0,0.00608]
[1766157454570,0.00010547,89387.0,89359.0,0.02034098]
[1766157454769,0.00010547,89387.0,89366.0,0.0111949]
[1766157454967,0.00099999,89480.0,89359.0,0.00284]
[1766157455271,0.0111847,89448.0,89409.0,0.0111894]
[1766157455454,0.0111834,89459.0,89420.0,0.0111881]
[1766157455658,0.0111853,89444.0,89406.0,0.0111898]
[1766157455957,0.011188,89422.0,89416.0,9e-08]
[1766157456161,0.0056,89436.0,89385.0,0.0111925]
[1766157456464,0.07924853,89537.0,89423.0,0.0111877]
[1766157456465,0.0211799,89486.0,89423.0,0.0111877]
[1766157456653,0.00132,89472.0,89415.0,0.00608]
[1766157456858,0.0111851,89445.0,89415.0,0.00608]
[1766157457057,0.00016771,89439.0,89424.0,0.0111876]
[1766157457254,0.00132,89472.0,89415.0,0.00608]
[1766157457255,0.00132,89472.0,89446.0,0.0111848]
[1766157457466,0.0111807,89480.0,89441.0,0.0111855]
[1766157457765,0.01,89486.0,89435.0,0.00252]
[1766157457766,0.0111819,89471.0,89435.0,0.00252]
[1766157457967,0.011185,89446.0,89419.0,0.28332497]
[1766157458268,0.00016771,89441.0,89424.0,1e-08]
[1766157458566,0.0111838,89455.0,89390.0,0.03868347]
[1766157458567,0.0111868,89431.0,89390.0,0.0111918]
[1766157458876,0.0111834,89459.0,89418.0,0.0111883]
[1766157459167,0.0559037,89480.0,89415.0,0.0111887]
[1766157459377,0.00016771,89456.0,89440.0,0.0111856]
[1766157459571,0.0111817,89472.0,89426.0,1.42744]
[1766157459864,0.00608,89484.0,89426.0,1.42744]
[1766157459865,0.0111824,89467.0,89426.0,1.42744]
[1766157460068,0.0111831,89461.0,89426.0,1.42744]
[1766157460272,0.00608,89484.0,89423.0,0.00608]
[1766157460459,0.0111832,89460.0,89426.0,0.0111874]
[1766157460658,0.00016771,89460.0,89413.0,0.00608]
[1766157460967,0.0111853,89444.0,89383.0,0.0111927]
[1766157461177,0.0111885,89418.0,89378.0,0.0111934]
[1766157461360,0.0111895,89410.0,89377.0,0.02889033]
[1766157461561,0.0052,89422.0,89376.0,0.00608]
[1766157461772,0.0052,89443.0,89402.0,0.0111903]
[1766157461975,0.0052,89443.0,89403.0,0.0111902]
[1766157462158,0.0111859,89438.0,89398.0,0.0111909]
[1766157462467,0.0111872,89428.0,89399.0,0.01749508]
[1766157462668,0.0611267,89443.0,89387.0,0.02889033]
[1766157462973,0.0111895,89410.0,89406.0,1e-08]
[1766157463280,0.00604,89413.0,89365.0,0.02889033]
[1766157463461,0.0111875,89426.0,89358.0,0.03868347]
[1766157463462,0.00144,89412.0,89366.0,0.01750102]
[1766157463663,0.00144,89412.0,89360.0,0.0111956]
[1766157463858,0.00144,89412.0,89361.0,0.01750215]
[1766157464062,0.0111915,89394.0,89362.0,0.01750215]
[1766157464370,0.0111942,89373.0,89345.0,0.02889033]
[1766157464672,1.42728,89402.0,89338.0,0.03868347]
[1766157464673,0.68794028,89420.0,89356.0,0.02889033]
[1766157464872,0.0111919,89391.0,89357.0,0.01750487]
[1766157465065,0.0111884,89418.0,89358.0,0.01750487]
[1766157465264,1.42728,89426.0,89359.0,0.01750487]
[1766157465462,0.0111895,89410.0,89370.0,0.0111944]
[1766157465664,0.00016781,89394.0,89377.0,0.00016781]
[1766157465863,0.00016781,89394.0,89382.0,0.0111929]
[1766157465864,1e-08,89394.0,89382.0,0.0111929]
[1766157466068,0.0111837,89456.0,89391.0,0.0111917]
[1766157466069,0.0111872,89428.0,89391.0,0.0111917]
[1766157466269,1.42736,89448.0,89392.0,0.01749733]
[1766157466270,0.00196,89434.0,89392.0,0.01749733]
[1766157466472,0.00196,89434.0,89384.0,0.0111926]
[1766157466661,0.0111881,89421.0,89386.0,0.0111924]
[1766157466858,0.00196,89434.0,89387.0,0.01749721]
[1766157467060,0.00016781,89419.0,89402.0,0.00016781]
[1766157467872,0.00016781,89419.0,89379.0,0.00604]
[1766157467873,0.0111889,89414.0,89382.0,0.02889033]
[1766157468072,0.00016781,89419.0,89383.0,0.01749791]
[1766157468073,0.0111895,89410.0,89383.0,0.01749791]
[1766157468268,0.0111895,89410.0,89384.0,0.01749791]
[1766157468469,0.00516,89411.0,89368.0,0.02889033]
[1766157468673,0.00516,89411.0,89374.0,0.02889033]
[1766157468873,0.00516,89411.0,89365.0,0.011195]
[1766157468874,0.00016781,89401.0,89384.0,0.00016781]
[1766157469079,0.01135831,89401.0,89372.0,0.02889033]
[1766157469373,0.0111939,89374.0,89355.0,0.02889033]
[1766157469566,0.0111954,89363.0,89332.0,0.02889033]
[1766157469762,0.0111956,89361.0,89326.0,0.02899872]
[1766157469974,0.00512,89360.0,89327.0,0.0175082]
[1766157470178,0.00512,89360.0,89326.0,0.00010839]
[1766157470179,0.00016781,89352.0,89328.0,0.0175082]
[1766157470381,0.00016781,89352.0,89329.0,0.01750918]
[1766157470382,1e-08,89352.0,89329.0,0.01750918]
[1766157470568,1e-08,89352.0,89333.0,0.02889033]
[1766157470876,0.011191,89398.0,89345.0,0.02889033]
[1766157471067,0.68794028,89410.0,89339.0,0.0111982]
[1766157471068,0.00256,89397.0,89348.0,0.02889033]
[1766157471267,0.0111916,89393.0,89356.0,0.0111961]
[1766157471472,0.0111916,89393.0,89345.0,0.00604]
[1766157471473,0.00256,89397.0,89360.0,0.0111956]
[1766157471676,0.011194,89374.0,89332.0,0.02889033]
[1766157471871,0.00016781,89362.0,89344.0,0.00016781]
[1766157472073,0.0111868,89431.0,89358.0,0.08486963]
[1766157472274,0.68794028,89430.0,89368.0,0.02889033]
[1766157472577,0.0111868,89431.0,89376.0,0.02889033]
[1766157472782,0.00068,89435.0,89413.0,0.011189]
[1766157472981,0.0111825,89465.0,89401.0,0.00512]
[1766157473181,0.00016781,89439.0,89422.0,0.00016781]
[1766157473370,0.0001677,89439.0,89422.0,0.0001677]
[1766157473569,0.0001677,89439.0,89406.0,0.0111898]
[1766157473771,0.0001677,89439.0,89407.0,0.01749096]
[1766157473979,0.0001677,89439.0,89418.0,0.0111884]
[1766157474480,0.0001677,89439.0,89424.0,0.0111876]
[1766157474682,0.0001677,89439.0,89404.0,0.02889033]
[1766157474880,0.0001677,89439.0,89392.0,0.04008193]
[1766157475069,0.00604,89442.0,89408.0,0.0111896]
[1766157475272,0.0111856,89441.0,89408.0,0.0111896]
[1766157475473,0.00604,89442.0,89412.0,0.0111891]
[1766157475676,0.00604,89442.0,89392.0,0.0111916]
[1766157475677,0.00604,89442.0,89422.0,0.0111879]
[1766157475879,0.0001677,89436.0,89403.0,0.02889033]
[1766157476183,0.0001677,89436.0,89406.0,0.02889033]
[1766157476380,0.0001677,89436.0,89421.0,0.0111879]
[1766157476588,0.00276,89458.0,89422.0,0.01749108]
[1766157476785,0.00276,89458.0,89436.0,0.0111861]
[1766157476975,0.00276,89458.0,89412.0,0.0111891]
[1766157476976,0.00276,89458.0,89439.0,0.0111857]
[1766157477175,0.00276,89458.0,89415.0,0.03868347]
[1766157477176,0.00276,89458.0,89434.0,0.0111863]
[1766157477474,0.00124,89481.0,89437.0,0.0001677]
[1766157477675,0.0001677,89455.0,89438.0,0.01748785]
[1766157477876,0.0001677,89455.0,89439.0,0.0111857]
[1766157478075,0.0001677,89455.0,89437.0,0.0001677]
[1766157478279,0.0001677,89455.0,89414.0,0.02889033]
[1766157478574,0.68794028,89480.0,89421.0,0.0111879]
[1766157478781,0.0111819,89471.0,89436.0,0.011186]
[1766157478973,0.00604,89479.0,89421.0,0.02889033]
[1766157479175,0.0001677,89459.0,89424.0,0.02889033]
[1766157479389,0.0111838,89455.0,89417.0,0.0111884]
[1766157479581,0.0111838,89455.0,89415.0,0.02889033]
[1766157479582,0.0001677,89445.0,89418.0,0.01749016]
[1766157479783,0.0001677,89445.0,89426.0,0.0111874]
[1766157479986,0.0001677,89445.0,89433.0,0.0111865]
[1766157480183,0.0001677,89445.0,89418.0,0.02889033]
[1766157480384,0.0001677,89445.0,89419.0,0.01748955]
[1766157480586,0.0111825,89466.0,89420.0,0.07546628]
[1766157480780,0.0559171,89459.0,89402.0,0.14732357]
[1766157480982,0.0111908,89399.0,89372.0,0.03868347]
[1766157481179,0.00604,89404.0,89360.0,0.06102545]
[1766157481385,0.0111925,89386.0,89361.0,0.01749996]
[1766157481587,0.00016781,89382.0,89360.0,0.06102545]
[1766157481787,0.00016781,89382.0,89361.0,0.0111955]
[1766157482086,3e-08,89381.0,89362.0,0.01750052]
[1766157482284,3e-08,89381.0,89363.0,0.01750052]
[1766157482484,3e-08,89381.0,89377.0,0.0111934]
[1766157482789,1e-08,89382.0,89381.0,0.011193]
[1766157482988,1e-08,89382.0,89381.0,0.01749773]
[1766157483185,1e-08,89382.0,89373.0,0.00016781]
[1766157483386,0.68794028,89400.0,89349.0,0.03867664]
[1766157483590,0.006,89399.0,89350.0,0.01750133]
[1766157483788,0.006,89399.0,89351.0,0.00700133]
[1766157484091,0.006,89399.0,89376.0,0.0111936]
[1766157484295,0.006,89399.0,89373.0,0.0111939]
[1766157484482,0.006,89399.0,89344.0,0.03867664]
[1766157484483,0.006,89399.0,89345.0,0.04987414]
[1766157484793,0.00016781,89395.0,89380.0,0.0111931]
[1766157484984,1e-08,89396.0,89393.0,0.0111914]
[1766157485178,0.68794028,89430.0,89365.0,0.03867664]
[1766157485378,0.0559236,89448.0,89355.0,0.05810313]
[1766157485379,0.0111875,89426.0,89363.0,0.0111953]
[1766157485584,0.0111809,89478.0,89379.0,0.0559666]
[1766157485784,0.00604,89457.0,89389.0,0.03867664]
[1766157485983,0.00016772,89432.0,89414.0,0.00016772]
[1766157486899,0.0111876,89425.0,89394.0,0.0111914]
[1766157487081,0.0111838,89455.0,89391.0,0.00508]
[1766157487287,0.0111867,89432.0,89391.0,0.00508]
[1766157487483,0.0111854,89443.0,89409.0,0.0111895]
[1766157487785,0.00252,89448.0,89392.0,0.11918971]
[1766157487980,0.00016772,89429.0,89401.0,0.0111904]
[1766157488180,0.011188,89422.0,89393.0,0.0111915]
[1766157488390,0.0111884,89419.0,89385.0,0.0111925]
[1766157488580,0.00016772,89411.0,89391.0,0.0111917]
[1766157488780,0.00016772,89411.0,89389.0,0.011192]
[1766157488981,2e-08,89411.0,89406.0,0.0111899]
[1766157489181,2e-08,89411.0,89381.0,0.03867664]
[1766157489381,2e-08,89411.0,89383.0,0.0111927]
[1766157489598,0.0111901,89405.0,89374.0,0.0111938]
[1766157489794,0.01118942,89411.0,89377.0,0.0111935]
[1766157490090,0.00016781,89403.0,89385.0,0.00016781]
[1766157490298,0.00016781,89403.0,89371.0,0.0111943]
[1766157490299,0.01135811,89403.0,89371.0,0.0111943]
[1766157490484,0.0111907,89400.0,89371.0,0.0111943]
[1766157490684,0.00016781,89403.0,89358.0,0.03867664]
[1766157490884,0.00016781,89403.0,89357.0,0.00464]
[1766157490885,0.00016781,89403.0,89359.0,0.02871991]
[1766157491090,0.00016781,89403.0,89385.0,0.0111925]
[1766157491292,0.00016781,89403.0,89379.0,0.0111933]
[1766157491493,0.00016781,89403.0,89382.0,0.0111929]
[1766157491792,0.00016781,89403.0,89367.0,0.00504]
[1766157491997,0.00016781,89403.0,89388.0,0.0111921]
[1766157492197,1e-08,89403.0,89370.0,0.03867664]
[1766157492385,0.0111831,89461.0,89389.0,0.03867664]
[1766157492694,1.42732,89471.0,89384.0,0.05810313]
[1766157492695,0.0111847,89448.0,89396.0,0.0111911]
[1766157492887,0.68794028,89450.0,89384.0,0.04467664]
[1766157492888,0.0111852,89444.0,89384.0,0.04467664]
[1766157493089,0.0111846,89449.0,89385.0,0.0285342]
[1766157493393,0.08930026,89486.0,89382.0,0.03867664]
[1766157493394,0.00252,89448.0,89420.0,0.0111881]
[1766157493694,0.0111854,89443.0,89415.0,0.0111888]
[1766157493993,0.0559116,89467.0,89396.0,0.03867664]
[1766157494295,0.68794028,89450.0,89382.0,0.03867664]
[1766157494484,0.01135532,89425.0,89383.0,0.02851597]
[1766157494687,0.00016772,89425.0,89401.0,0.0111905]
[1766157494889,0.006,89428.0,89384.0,0.0111926]
[1766157495085,0.006,89428.0,89385.0,0.02841432]
[1766157495283,0.0111899,89407.0,89375.0,0.04987769]
[1766157495597,0.0111899,89407.0,89352.0,1.42732]
[1766157495598,0.0111925,89386.0,89382.0,2e-08]
[1766157495788,0.0559508,89405.0,89347.0,0.03868389]
[1766157495988,0.68794028,89390.0,89333.0,0.03868389]
[1766157496187,0.68794028,89370.0,89321.0,0.0001281]
[1766157496388,0.0111971,89349.0,89321.0,0.0001281]
[1766157496598,0.006,89348.0,89322.0,0.0112003]
[1766157496786,0.00016782,89344.0,89321.0,0.0001281]
[1766157496990,0.0111956,89361.0,89325.0,0.0112]
[1766157497185,0.0111949,89367.0,89332.0,0.0111991]
[1766157497389,1.43172,89375.0,89321.0,0.0001281]
[1766157497390,0.00436,89375.0,89321.0,0.0001281]
[1766157497593,0.0111905,89402.0,89371.0,0.0111942]
[1766157497792,0.00096,89412.0,89375.0,0.0111937]
[1766157497996,0.00016779,89402.0,89385.0,0.00016779]
[1766157498184,1.4274,89423.0,89385.0,0.00016779]
[1766157498388,1.4274,89423.0,89386.0,0.0111923]
[1766157498600,0.0111881,89421.0,89390.0,0.0111919]
[1766157498900,0.00016,89427.0,89385.0,0.00016779]
[1766157499097,0.00016779,89415.0,89385.0,0.00016779]
[1766157499398,0.011191,89398.0,89348.0,0.03868389]
[1766157499585,0.011192,89390.0,89355.0,0.0111963]
[1766157499902,0.00252,89395.0,89345.0,0.0111975]
[1766157500101,0.00252,89395.0,89347.0,0.0111973]
[1766157500401,0.0111937,89376.0,89334.0,0.03868389]
[1766157500585,0.0111937,89376.0,89342.0,0.0111979]
[1766157500786,0.00016779,89380.0,89349.0,0.0111971]
[1766157501094,0.0111933,89379.0,89348.0,0.0111971]
[1766157501402,0.00016779,89380.0,89341.0,0.011198]
[1766157501596,1.42752,89417.0,89349.0,0.11190125]
[1766157501897,0.006,89416.0,89353.0,0.03869746]
[1766157502201,0.0111927,89384.0,89358.0,0.0111959]
[1766157502700,0.0111938,89375.0,89362.0,0.00016779]
[1766157502897,0.0111947,89368.0,89362.0,9e-08]
[1766157503096,0.0111947,89368.0,89338.0,0.0111983]
[1766157503296,0.0111953,89363.0,89336.0,0.00248]
[1766157503496,0.0111961,89357.0,89328.0,0.04989706]
[1766157503697,0.0111961,89357.0,89332.0,0.0111992]
[1766157503893,0.0111955,89362.0,89336.0,0.0111987]
[1766157504195,0.00016789,89358.0,89324.0,0.005]
[1766157504411,0.00016789,89358.0,89329.0,0.0111994]
[1766157504700,0.00016789,89358.0,89321.0,0.0061281]
[1766157504895,0.0111967,89352.0,89324.0,0.0112001]
[1766157505096,0.0111963,89355.0,89321.0,0.0001281]
[1766157505288,0.0111967,89353.0,89327.0,0.0111998]
[1766157505488,0.0111967,89353.0,89321.0,0.0001281]
[1766157505489,0.01136389,89358.0,89334.0,0.0111989]
[1766157505801,0.0111971,89349.0,89324.0,0.0112001]
[1766157506392,0.0111991,89333.0,89321.0,0.0001281]
[1766157506595,0.00016789,89336.0,89321.0,0.0001281]
[1766157507099,0.0111989,89335.0,89321.0,0.0001281]
[1766157507400,0.0111992,89332.0,89321.0,0.0001281]
[1766157507697,0.0111993,89331.0,89321.0,1e-07]
[1766157507899,0.0111998,89328.0,89321.0,1e-07]
[1766157508097,0.00016789,89336.0,89291.0,0.03869746]
[1766157508302,0.01136669,89336.0,89310.0,0.0112018]
[1766157508503,0.01136669,89336.0,89281.0,0.05802897]
[1766157508504,0.00016789,89336.0,89295.0,0.03869746]
[1766157508701,0.00016789,89336.0,89297.0,0.0112035]
[1766157509090,8.35e-05,89335.0,89297.0,0.0112035]
[1766157509290,8.35e-05,89335.0,89289.0,0.006]
[1766157509291,0.0112014,89315.0,89290.0,0.0112044]
[1766157509605,0.0112027,89304.0,89276.0,0.0112061]
[1766157509908,8.7e-05,89303.0,89265.0,0.0112076]
[1766157510198,8.7e-05,89303.0,89282.0,0.0112054]
[1766157510405,8.7e-05,89303.0,89283.0,0.0112052]
[1766157510591,8.7e-05,89303.0,89278.0,0.0112058]
[1766157510791,0.011203,89302.0,89261.0,0.27755714]
[1766157510998,0.0112035,89298.0,89268.0,0.0112071]
[1766157511191,0.0112041,89294.0,89263.0,0.0112078]
[1766157511396,0.0112041,89294.0,89270.0,0.00016799]
[1766157511397,0.00016799,89287.0,89270.0,0.00016799]
[1766157511591,8.7e-05,89303.0,89270.0,0.00016799]
[1766157512304,0.0112034,89299.0,89272.0,0.0112066]
[1766157512504,8.7e-05,89303.0,89270.0,0.00016799]
[1766157512692,0.0112045,89290.0,89270.0,0.00016799]
[1766157513010,9.936e-05,89289.0,89246.0,0.03869746]
[1766157513196,0.68794028,89280.0,89228.0,0.0112122]
[1766157513509,0.0112092,89253.0,89222.0,0.01449815]
[1766157513803,0.0112115,89235.0,89207.0,0.0112149]
[1766157514001,0.0112121,89229.0,89212.0,0.00016809]
[1766157514203,0.00016809,89230.0,89212.0,0.00016809]
[1766157514505,0.0112084,89259.0,89213.0,0.25692]
[1766157514695,0.0112065,89274.0,89226.0,0.0112124]
[1766157515005,0.0560294,89279.0,89216.0,0.0112137]
[1766157515302,0.0112095,89250.0,89220.0,0.0112132]
[1766157515606,0.0560267,89284.0,89226.0,0.00016809]
[1766157515794,0.011208,89262.0,89232.0,0.0112117]
[1766157515996,0.0112093,89252.0,89221.0,0.12496704]
[1766157516200,0.0112098,89248.0,89220.0,0.0112132]
[1766157516504,0.00496,89260.0,89226.0,0.0112124]
[1766157516505,0.0161683,89260.0,89226.0,0.0112124]
[1766157516704,0.0161683,89260.0,89234.0,0.00016809]
[1766157516705,0.00016809,89252.0,89234.0,0.00016809]
[1766157516909,0.0112098,89248.0,89234.0,0.00016809]
[1766157517300,0.00016809,89252.0,89234.0,0.00016809]
[1766157517607,7.988e-05,89259.0,89234.0,0.00016809]
[1766157517911,0.0112085,89258.0,89234.0,0.00016809]
[1766157518112,7.988e-05,89259.0,89234.0,0.00016809]
[1766157518504,0.0112103,89244.0,89234.0,0.00016809]
[1766157518697,0.00016809,89255.0,89234.0,0.00016809]
[1766157518900,0.0112095,89250.0,89234.0,0.00016809]
[1766157519103,0.00016809,89255.0,89234.0,0.00016809]
[1766157519416,0.0112105,89242.0,89234.0,9e-08]
[1766157519607,0.0112112,89237.0,89209.0,0.0112146]
[1766157519801,0.0112116,89234.0,89209.0,0.0112146]
[1766157520006,0.0112127,89225.0,89200.0,1.4402157]
[1766157520409,0.00492,89232.0,89200.0,1.429]
[1766157520597,8.014e-05,89241.0,89225.0,0.0112126]
[1766157520804,1.4e-07,89241.0,89220.0,1.42908]
[1766157521009,1.4e-07,89241.0,89201.0,0.1180278]
[1766157521204,1.4e-07,89241.0,89205.0,0.1180278]
[1766157521507,0.00016809,89232.0,89214.0,0.00016809]
[1766157521809,9e-08,89232.0,89215.0,0.006]
[1766157522210,9e-08,89232.0,89216.0,0.006]
[1766157522704,9e-08,89232.0,89214.0,0.00016809]
[1766157523016,0.0112128,89224.0,89214.0,0.00016809]
[1766157523308,0.00556,89229.0,89191.0,1.42928]
[1766157523611,0.00556,89229.0,89192.0,1.43532]
[1766157523801,0.00556,89229.0,89193.0,1.43536]
[1766157524007,0.013251,89239.0,89214.0,0.0112139]
[1766157524204,0.011211,89239.0,89214.0,0.0112139]
[1766157524397,0.00016809,89235.0,89218.0,0.00016809]
[1766157524602,0.00016809,89235.0,89175.0,0.03869746]
[1766157524803,0.1120106,89318.0,89236.0,0.0112111]
[1766157524804,0.011208,89262.0,89236.0,0.0112111]
[1766157525001,0.011208,89262.0,89188.0,1.45292926]
[1766157525002,0.0112068,89272.0,89222.0,0.00488]
[1766157525203,0.0112095,89250.0,89227.0,0.0112123]
[1766157525408,0.0112079,89263.0,89223.0,0.00488]
[1766157525606,0.0112086,89257.0,89234.0,0.0112114]
[1766157525802,0.0112094,89251.0,89234.0,9e-08]
[1766157525998,0.0112114,89235.0,89212.0,1.42952]
[1766157526206,0.0112118,89232.0,89213.0,0.006]
[1766157526412,0.00492,89245.0,89217.0,0.0112135]
[1766157526713,0.011211,89239.0,89215.0,0.0112139]
[1766157526915,0.0112118,89232.0,89194.0,0.11207809]
[1766157527100,0.0112117,89233.0,89218.0,0.00016809]
[1766157527301,0.00016809,89236.0,89218.0,0.00016809]
[1766157527498,0.0112114,89235.0,89218.0,0.00016809]
[1766157527698,0.00016809,89236.0,89218.0,0.00016809]
[1766157527905,1.4296,89278.0,89229.0,0.0112121]
[1766157528100,0.0560313,89276.0,89219.0,0.0112133]
[1766157528313,0.0112065,89274.0,89220.0,1.43208]
[1766157528517,0.0112097,89249.0,89224.0,0.0112126]
[1766157528810,0.0112101,89246.0,89225.0,0.006]
[1766157529017,0.006,89255.0,89238.0,0.0112109]
[1766157529215,0.0112081,89261.0,89233.0,0.0112115]
[1766157529509,0.00488,89281.0,89226.0,0.0172124]
[1766157529717,0.00488,89281.0,89244.0,0.0112101]
[1766157530011,0.00488,89281.0,89254.0,0.00016809]
[1766157530012,0.0112079,89263.0,89254.0,0.00016809]
[1766157530421,0.0112083,89260.0,89234.0,1.42968]
[1766157530615,0.0112083,89260.0,89235.0,0.006]
[1766157530806,0.0112083,89260.0,89236.0,0.006]
[1766157531111,0.00099999,89330.0,89236.0,0.006]
[1766157531112,0.0112045,89290.0,89236.0,0.006]
[1766157531312,0.0111991,89333.0,89277.0,0.011206]
[1766157531612,0.0112019,89311.0,89296.0,0.000168]
[1766157531819,0.006,89310.0,89266.0,0.0112074]
[1766157532018,0.0112052,89285.0,89249.0,0.0112095]
[1766157532203,0.0112028,89304.0,89239.0,8.451e-05]